bitfinex/quotes_SOLUSD_20220216
["timestamp","ask_amount","ask_price","bid_price","bid_amount"]
[1645017504737,56.79582543,101.95,101.91,14.7169]
[1645017504936,0.25,101.94,101.91,14.7169]
[1645017506140,0.25,101.94,101.9,48.2246]
[1645017506339,0.25,101.94,101.9,62.9427]
[1645017508944,0.25,101.94,101.9,102.22025348]
[1645017509944,0.25,101.94,101.9,62.9427]
[1645017510148,16.34768505,101.94,101.89,14.7196]
[1645017510374,38.86978505,101.94,101.89,14.7196]
[1645017510547,1.37878505,101.93,101.88,22.9517]
[1645017510947,36.69330564,101.92,101.88,22.9517]
[1645017511250,51.41580564,101.92,101.88,22.9517]
[1645017511451,53.85598091,101.92,101.85,39.1725]
[1645017511651,24.816,101.91,101.86,24.1498]
[1645017512251,48.36299202,101.9,101.86,24.1498]
[1645017514651,39.54,101.91,101.87,46.16738818]
[1645017515654,79.38128343,101.91,101.87,46.16738818]
[1645017517879,0.25,101.9,101.87,46.16738818]
[1645017518079,79.38128343,101.91,101.87,46.16738818]
[1645017519279,0.25,101.9,101.87,46.16738818]
[1645017519479,0.25,101.9,101.88,3.03219996]
[1645017519680,1.37878505,101.94,101.88,3.03219996]
[1645017519881,0.25,101.9,101.88,3.03219996]
[1645017520081,0.25,101.93,101.88,3.03219996]
[1645017520481,35.86049417,101.93,101.88,3.03219996]
[1645017520682,55.48799417,101.93,101.88,3.03219996]
[1645017520883,56.86677922,101.93,101.88,3.03219996]
[1645017521082,51.96077922,101.93,101.88,3.03219996]
[1645017522082,79.39807922,101.93,101.88,3.03219996]
[1645017522283,81.83825449,101.93,101.88,3.03219996]
[1645017523385,76.93225449,101.93,101.88,3.03219996]
[1645017524389,39.21611264,101.91,101.88,3.03219996]
[1645017524586,53.94001264,101.91,101.88,3.03219996]
[1645017527091,14.7239,101.91,101.88,3.03219996]
[1645017527298,1.37878505,101.94,101.88,3.03219996]
[1645017527491,1.37878505,101.95,101.88,31.23049996]
[1645017527897,1.37878505,101.95,101.89,0.25]
[1645017528094,34.49447076,101.94,101.89,44.42555519]
[1645017528692,0.25,101.93,101.89,44.42555519]
[1645017528889,0.25,101.93,101.89,59.14315519]
[1645017529889,34.49447076,101.94,101.89,59.14315519]
[1645017530998,14.7184,101.95,101.89,59.14315519]
[1645017531194,0.25,101.94,101.89,59.14315519]
[1645017531396,0.25,101.94,101.9,24.7275]
[1645017531591,0.25,101.94,101.9,39.4446]
[1645017532296,0.25,101.94,101.91,40.7565543]
[1645017532895,0.25,101.94,101.92,3.03219996]
[1645017534095,0.25,101.94,101.91,40.7565543]
[1645017534296,0.25,101.94,101.92,3.03219996]
[1645017534598,1.37878505,101.96,101.92,3.03219996]
[1645017534795,1.37878505,101.97,101.92,3.03219996]
[1645017534994,2.62125269,101.98,101.92,28.02049996]
[1645017535394,47.18299881,101.98,101.93,42.62813707]
[1645017535593,47.18299881,101.98,101.93,57.34093707]
[1645017535794,0.25,101.97,101.93,57.34093707]
[1645017537298,0.25,101.97,101.93,14.7128]
[1645017538199,0.25,101.97,101.93,58.59636605]
[1645017555928,0.40670132,101.99,101.95,97.81]
[1645017556126,0.40670132,101.99,101.96,112.5159]
[1645017556324,0.4825031,102.0,101.97,3.03219996]
[1645017556523,0.4825031,102.0,101.98,53.0]
[1645017556723,0.4825031,102.0,101.96,122.4942]
[1645017556925,0.4825031,102.0,101.99,46.63406899]
[1645017557724,0.4825031,102.0,101.99,49.66626895]
[1645017557927,0.4825031,102.0,101.99,64.36996895]
[1645017562449,0.4825031,102.0,101.99,3.03219996]
[1645017564655,0.4825031,102.0,101.97,60.64030938]
[1645017566358,0.4825031,102.0,101.91,27.9591]
[1645017566554,2.44017527,101.99,101.91,23.0571]
[1645017566757,29.99847527,101.99,101.91,23.0571]
[1645017567159,40.49917808,101.98,101.92,36.24048213]
[1645017568556,45.40317808,101.98,101.92,36.24048213]
[1645017568760,37.3673,101.99,101.92,149.03288213]
[1645017568957,22.6543,101.99,101.92,149.03288213]
[1645017569660,22.6543,101.99,101.93,0.25]
[1645017569857,22.6543,101.99,101.94,43.03556734]
[1645017570258,44.04449473,101.98,101.94,43.03556734]
[1645017571364,22.6543,101.99,101.94,43.03556734]
[1645017571561,6.48416982,102.0,101.94,57.74516734]
[1645017571962,6.48416982,102.0,101.94,43.03556734]
[1645017572361,51.34210274,102.0,101.94,43.03556734]
[1645017573963,51.34210274,102.0,101.94,57.74526734]
[1645017576564,51.34210274,102.0,101.94,155.82526734]
[1645017577268,0.4825031,102.0,101.95,0.25]
[1645017577465,0.4825031,102.0,101.95,14.9577]
[1645017577664,0.4825031,102.0,101.95,39.7913]
[1645017577892,0.4825031,102.0,101.95,39.5413]
[1645017578365,0.4825031,102.0,101.96,46.2746656]
[1645017580867,0.7325031,102.0,101.96,46.2746656]
[1645017581274,0.7325031,102.0,101.95,39.5413]
[1645017582269,0.7325031,102.0,101.95,77.88012024]
[1645017583268,0.4825031,102.0,101.95,77.88012024]
[1645017584768,0.7325031,102.0,101.95,39.5413]
[1645017585667,43.5041215,101.99,101.95,39.5413]
[1645017587975,43.5041215,101.99,101.95,86.60800248]
[1645017589272,43.5041215,101.99,101.95,39.5413]
[1645017590971,43.5041215,101.99,101.95,24.8336]
[1645017591382,43.5041215,101.99,101.91,91.0223]
[1645017591572,43.5041215,101.99,101.92,23.6217]
[1645017591777,49.78690655,101.99,101.92,23.6217]
[1645017592173,49.78690655,101.99,101.92,65.29379148]
[1645017592374,52.22708182,101.99,101.92,65.29379148]
[1645017592674,66.93978182,101.99,101.92,80.00649148]
[1645017594077,66.93978182,101.99,101.92,38.3344]
[1645017594280,1.37878505,101.98,101.92,23.6217]
[1645017594476,19.6198,101.97,101.92,23.6217]
[1645017594880,19.6198,101.97,101.88,4.904]
[1645017595077,67.32324419,101.96,101.89,45.45144182]
[1645017595277,67.32324419,101.96,101.89,60.16824182]
[1645017595682,67.32324419,101.96,101.9,23.6529]
[1645017595878,82.04004419,101.96,101.9,23.6529]
[1645017596878,82.04004419,101.96,101.89,60.16824182]
[1645017597079,82.04004419,101.96,101.9,0.25]
[1645017597278,86.94504419,101.96,101.88,14.7184]
[1645017597477,4.905,101.95,101.86,22.621]
[1645017597677,14.721,101.93,101.86,45.1448]
[1645017598279,34.81940859,101.92,101.87,38.55405919]
[1645017599578,49.54260859,101.92,101.87,38.55405919]
[1645017599780,49.54260859,101.92,101.84,28.7539]
[1645017599980,2.44017527,101.91,101.81,24.5769]
[1645017600182,4.908,101.9,101.81,24.5769]
[1645017600785,46.8892141,101.89,101.82,44.07807995]
[1645017601380,61.6182141,101.89,101.82,44.07807995]
[1645017601983,64.05838937,101.89,101.8,4.908]
[1645017602186,64.05838937,101.89,101.79,60.6291]
[1645017602382,64.05838937,101.89,101.79,75.3597]
[1645017602582,162.13838937,101.89,101.79,60.6291]
[1645017602782,64.05838937,101.89,101.79,60.6291]
[1645017602981,64.05838937,101.89,101.8,35.19050192]
[1645017603183,38.69752708,101.87,101.8,35.19050192]
[1645017604991,53.42892708,101.87,101.8,35.19050192]
[1645017605186,38.69752708,101.87,101.8,49.92100192]
[1645017606086,41.13770235,101.87,101.8,35.19050192]
[1645017606286,41.13770235,101.87,101.81,0.25]
[1645017606487,38.69752708,101.87,101.81,0.25]
[1645017606886,4.909,101.88,101.81,0.25]
[1645017607087,24.4434,101.89,101.81,0.25]
[1645017607487,0.25,101.88,101.81,0.25]
[1645017607907,48.70711603,101.88,101.81,113.0584]
[1645017608093,48.70711603,101.88,101.82,46.00940157]
[1645017608293,0.25,101.88,101.82,46.00940157]
[1645017609393,24.4434,101.89,101.83,0.25]
[1645017609594,27.5546,101.93,101.83,14.9745]
[1645017609795,22.6466,101.93,101.83,57.5989]
[1645017610394,22.6466,101.93,101.84,141.57300544]
[1645017610596,22.6466,101.93,101.86,14.7199]
[1645017610794,38.74966539,101.92,101.87,47.66152394]
[1645017611397,0.25,101.91,101.87,47.66152394]
[1645017611595,38.74966539,101.92,101.87,47.66152394]
[1645017611794,22.6466,101.93,101.87,47.66152394]
[1645017612796,44.66939223,101.92,101.87,47.66152394]
[1645017612998,44.91939223,101.92,101.87,47.66152394]
[1645017613499,0.25,101.92,101.87,47.66152394]
[1645017613698,0.25,101.92,101.85,24.322]
[1645017614896,37.33296036,101.92,101.86,38.50856815]
[1645017615099,42.23996036,101.92,101.86,38.50856815]
[1645017615524,56.96446036,101.92,101.86,38.50856815]
[1645017615920,42.23996036,101.92,101.86,38.50856815]
[1645017616124,37.33296036,101.92,101.86,38.50856815]
[1645017616320,37.08296036,101.92,101.86,53.23016815]
[1645017617720,4.907,101.95,101.87,112.7991]
[1645017617919,24.5398,101.96,101.87,113.0491]
[1645017618119,29.4458,101.96,101.87,135.6885]
[1645017618519,42.20328137,101.95,101.88,47.05777519]
[1645017618922,42.20328137,101.95,101.9,34.18340988]
[1645017619122,29.4458,101.96,101.9,34.18340988]
[1645017619321,24.5398,101.96,101.9,34.18340988]
[1645017620922,24.5398,101.96,101.9,48.89930988]
[1645017621123,68.42047459,101.97,101.9,146.97930988]
[1645017621328,0.25,101.96,101.91,0.25]
[1645017622326,0.25,101.98,101.91,0.25]
[1645017622825,0.25,101.98,101.92,14.7126]
[1645017623226,0.25,101.98,101.93,41.83062394]
[1645017624029,45.13812189,101.99,101.93,41.83062394]
[1645017625225,45.13812189,101.99,101.93,41.58062394]
[1645017625428,0.25,101.98,101.93,41.58062394]
[1645017625627,5.154,101.98,101.93,41.58062394]
[1645017625828,37.01978457,101.97,101.93,41.58062394]
[1645017627330,7.59417527,101.98,101.93,41.58062394]
[1645017627529,2.69017527,101.98,101.93,41.58062394]
[1645017628232,41.27980303,101.98,101.93,41.58062394]
[1645017628933,41.27980303,101.98,101.91,39.329]
[1645017629136,55.99530303,101.98,101.91,24.6146]
[1645017629934,55.99530303,101.98,101.91,66.56668312]
[1645017631937,55.99530303,101.98,101.91,24.6146]
[1645017632238,4.904,101.97,101.91,24.6146]
[1645017632437,19.6216,101.97,101.91,24.6146]
[1645017632637,22.06177527,101.97,101.91,24.6146]
[1645017633039,42.42494277,101.96,101.91,24.6146]
[1645017633436,42.42494277,101.96,101.91,70.19997973]
[1645017635338,42.42494277,101.96,101.91,45.58537973]
[1645017638840,0.25,101.95,101.91,45.58537973]
[1645017641142,0.25,101.95,101.9,37.3339]
[1645017641345,0.25,101.95,101.9,22.6176]
[1645017642140,0.25,101.95,101.9,71.13319766]
[1645017642545,0.25,101.95,101.9,22.6176]
[1645017642950,14.9691,101.95,101.9,22.6176]
[1645017643545,44.43583288,101.94,101.9,22.6176]
[1645017644849,44.43583288,101.94,101.9,69.00710666]
[1645017646950,14.9691,101.95,101.9,69.00710666]
[1645017647149,0.25,101.95,101.9,181.80410666]
[1645017647352,0.25,101.95,101.91,0.25]
[1645017647851,0.25,101.95,101.9,69.00710666]
[1645017649276,47.00194346,101.96,101.9,69.00710666]
[1645017649877,61.71934346,101.96,101.9,83.72400666]
[1645017650275,0.25,101.95,101.9,83.72400666]
[1645017658692,1.37878505,101.96,101.9,181.80400666]
[1645017658890,1.37878505,101.97,101.91,0.25]
[1645017659090,1.37878505,101.98,101.92,112.7906]
[1645017659791,1.37878505,101.98,101.94,98.08]
[1645017659995,1.37878505,101.98,101.95,38.60146416]
[1645017660194,1.37878505,101.99,101.96,3.03219996]
[1645017660593,35.74612715,101.99,101.96,3.03219996]
[1645017660792,35.74612715,101.99,101.92,23.3035]
[1645017661005,1.37878505,101.98,101.92,23.3035]
[1645017661495,0.25,101.97,101.92,23.3035]
[1645017661695,46.48242682,101.97,101.92,58.37196283]
[1645017661896,46.48242682,101.97,101.92,73.08676283]
[1645017663197,61.19762682,101.97,101.92,73.08676283]
[1645017664195,61.19762682,101.97,101.92,38.0183]
[1645017664495,61.19762682,101.97,101.91,14.716]
[1645017664697,65.01658714,101.97,101.9,22.5402]
[1645017665099,1.37878505,101.96,101.9,22.5402]
[1645017665297,61.3461125,101.95,101.9,22.5402]
[1645017665499,63.78628777,101.95,101.9,22.5402]
[1645017665698,63.78628777,101.95,101.9,66.88719221]
[1645017665898,61.3461125,101.95,101.9,66.88719221]
[1645017666100,58.90395856,101.95,101.9,22.5402]
[1645017666899,58.90395856,101.95,101.89,39.129]
[1645017667103,58.90395856,101.95,101.89,24.4103]
[1645017667301,58.90395856,101.95,101.88,40.04668287]
[1645017667500,62.72291888,101.95,101.88,40.04668287]
[1645017668928,62.72291888,101.95,101.88,54.76668287]
[1645017669530,62.72291888,101.95,101.88,14.72]
[1645017669730,14.7219,101.93,101.85,86.624]
[1645017670535,46.2410902,101.92,101.86,44.49950112]
[1645017671030,46.2410902,101.92,101.87,14.7219]
[1645017674832,46.2410902,101.92,101.88,46.19634374]
[1645017675032,46.2410902,101.92,101.88,60.91694374]
[1645017675832,46.2410902,101.92,101.85,86.624]
[1645017676835,46.2410902,101.92,101.87,14.7212]
[1645017677435,46.2410902,101.92,101.88,42.21212593]
[1645017678239,46.2410902,101.92,101.88,56.93242593]
[1645017678836,46.2410902,101.92,101.88,14.7203]
[1645017679437,0.25,101.91,101.88,14.7203]
[1645017679838,42.7276,101.94,101.89,1.57069089]
[1645017680140,23.1015,101.94,101.89,16.28939089]
[1645017680340,0.25,101.93,101.89,16.28939089]
[1645017680842,37.07198938,101.93,101.89,60.83165576]
[1645017681541,38.64218505,101.96,101.89,60.83165576]
[1645017681742,37.2634,101.96,101.9,0.25]
[1645017681943,0.25,101.95,101.9,14.9672]
[1645017682542,40.93627807,101.95,101.91,36.68123611]
[1645017682743,0.25,101.95,101.91,36.68123611]
[1645017682944,0.25,101.95,101.91,51.39733611]
[1645017683145,22.6619,101.97,101.91,51.39733611]
[1645017683346,24.04068505,101.97,101.91,51.39733611]
[1645017683744,40.91608725,101.96,101.91,51.39733611]
[1645017684443,0.25,101.95,101.91,14.7161]
[1645017685444,0.25,101.95,101.91,53.9243936]
[1645017686044,0.25,101.95,101.91,14.7161]
[1645017686845,0.25,101.95,101.9,38.2564]
[1645017687247,0.25,101.95,101.9,73.71831138]
[1645017688048,5.155,101.95,101.9,73.71831138]
[1645017688250,45.72808864,101.94,101.9,14.7173]
[1645017688551,45.72808864,101.94,101.89,14.7187]
[1645017689451,45.72808864,101.94,101.89,61.70563491]
[1645017695881,45.72808864,101.94,101.89,14.7187]
[1645017696481,60.44738864,101.94,101.88,37.4218]
[1645017696680,60.44738864,101.94,101.88,22.7021]
[1645017697079,61.82617369,101.94,101.88,22.7021]
[1645017699183,61.82617369,101.94,101.88,59.71667013]
[1645017699383,60.44738864,101.94,101.88,59.71667013]
[1645017699584,60.44738864,101.94,101.88,22.7021]
[1645017699983,61.82617369,101.94,101.88,22.7021]
[1645017701585,61.82617369,101.94,101.87,24.831]
[1645017701790,14.7241,101.91,101.83,76.9795]
[1645017701998,20.2681,101.91,101.84,23.3212]
[1645017702189,2.44017527,101.9,101.84,23.3212]
[1645017702394,10.452,101.91,101.84,23.3212]
[1645017702792,37.31191385,101.89,101.84,23.3212]
[1645017703194,52.04001385,101.89,101.85,41.41925127]
[1645017703391,1.37878505,101.92,101.85,41.41925127]
[1645017703592,43.53268505,101.93,101.85,41.41925127]
[1645017704293,35.79047626,101.92,101.85,41.41925127]
[1645017704692,14.7244,101.91,101.85,41.41925127]
[1645017704995,36.81164781,101.9,101.85,41.41925127]
[1645017705793,51.53824781,101.9,101.85,41.41925127]
[1645017705993,51.53824781,101.9,101.84,23.3212]
[1645017707192,51.53824781,101.9,101.84,57.84765856]
[1645017709300,51.53824781,101.9,101.84,23.3212]
[1645017711400,36.81164781,101.9,101.85,144.80939978]
[1645017711606,4.908,101.93,101.85,144.80939978]
[1645017711804,23.2611,101.93,101.86,0.25]
[1645017712502,38.31148982,101.92,101.86,0.25]
[1645017712800,38.31148982,101.92,101.86,14.7217]
[1645017713202,0.25,101.91,101.86,14.7217]
[1645017713403,0.25,101.91,101.87,36.62532405]
[1645017713602,0.25,101.91,101.86,14.7217]
[1645017714507,0.25,101.91,101.86,61.94268846]
[1645017715412,0.25,101.91,101.86,160.02268846]
[1645017715609,0.25,101.91,101.88,14.719]
[1645017716110,0.25,101.91,101.89,3.03219996]
[1645017716310,0.25,101.91,101.89,46.14861386]
[1645017720314,59.94180174,101.93,101.89,46.14861386]
[1645017720716,59.94180174,101.93,101.89,3.03219996]
[1645017721922,0.25,101.92,101.89,3.03219996]
[1645017723723,0.25,101.92,101.85,24.1247]
[1645017724323,0.25,101.92,101.86,45.08738236]
[1645017724826,14.7226,101.92,101.86,45.08738236]
[1645017725024,41.88763516,101.91,101.86,45.08738236]
[1645017726425,0.25,101.9,101.86,45.08738236]
[1645017726825,0.25,101.9,101.85,38.8483]
[1645017727026,0.25,101.9,101.85,24.1247]
[1645017727947,0.25,101.9,101.85,65.19594136]
[1645017728947,14.9753,101.9,101.85,65.19594136]
[1645017729249,0.25,101.9,101.85,65.19594136]
[1645017731649,0.25,101.9,101.85,163.27594136]
[1645017731848,24.63988505,101.93,101.86,0.25]
[1645017732050,23.2611,101.93,101.86,0.25]
[1645017732754,64.02923138,101.93,101.86,0.25]
[1645017732948,78.75033138,101.93,101.87,14.7207]
[1645017733151,78.75033138,101.93,101.87,55.51136472]
[1645017733850,0.25,101.92,101.87,55.51136472]
[1645017749168,0.2026842,101.92,101.87,55.51136472]
[1645017750868,0.2026842,101.92,101.87,40.79066472]
[1645017751270,14.9244842,101.92,101.87,40.79066472]
[1645017751474,38.46951135,101.91,101.87,40.79066472]
[1645017752170,38.46951135,101.91,101.86,14.7217]
[1645017752570,53.19271135,101.91,101.85,24.1247]
[1645017753069,54.5714964,101.91,101.85,24.1247]
[1645017753271,54.5714964,101.91,101.85,66.25777063]
[1645017754593,77.6592964,101.91,101.85,66.25777063]
[1645017754792,76.28051135,101.91,101.85,66.25777063]
[1645017755995,76.28051135,101.91,101.85,80.98157063]
[1645017756494,37.811,101.91,101.85,80.98157063]
[1645017758094,40.21845387,101.9,101.85,80.98157063]
[1645017766617,37.811,101.91,101.85,80.98157063]
[1645017767417,14.9249842,101.92,101.85,80.98157063]
[1645017767617,55.36496805,101.92,101.85,80.98157063]
[1645017768917,14.7223,101.92,101.85,80.98157063]
[1645017769122,39.72848505,101.93,101.85,80.98157063]
[1645017769320,25.00758505,101.93,101.86,0.25]
[1645017769521,23.6288,101.93,101.88,14.7184]
[1645017769723,23.6288,101.93,101.89,43.21480507]
[1645017770525,0.25,101.92,101.89,43.21480507]
[1645017770726,0.25,101.92,101.9,3.03219996]
[1645017771025,25.87258505,101.94,101.9,3.03219996]
[1645017771424,25.87258505,101.94,101.91,47.98292786]
[1645017771627,1.37878505,101.94,101.91,47.98292786]
[1645017772027,16.09688505,101.95,101.91,47.98292786]
[1645017772327,0.25,101.94,101.91,47.98292786]
[1645017773343,0.25,101.94,101.92,1.25875596]
[1645017777151,0.25,101.94,101.93,47.10063706]
[1645017779553,22.9157,101.96,101.93,47.10063706]
[1645017779961,16.09388505,101.97,101.94,1.98157906]
[1645017780161,37.07031193,101.96,101.94,1.98157906]
[1645017780458,37.07031193,101.96,101.91,39.1269]
[1645017780654,60.30811193,101.96,101.91,39.1269]
[1645017780855,75.02461193,101.96,101.91,24.4118]
[1645017781256,0.25,101.95,101.91,24.4118]
[1645017783760,0.25,101.95,101.92,48.30899194]
[1645017784560,0.25,101.95,101.91,24.4118]
[1645017785562,0.25,101.95,101.92,45.87911363]
[1645017785762,0.25,101.95,101.93,3.03219996]
[1645017785963,76.40339698,101.96,101.93,3.03219996]
[1645017785964,39.33308505,101.96,101.93,3.03219996]
[1645017786166,37.9543,101.96,101.93,3.03219996]
[1645017787071,86.30243349,101.96,101.93,3.03219996]
[1645017787368,0.25,101.95,101.93,3.03219996]
[1645017792102,1.37878505,101.97,101.93,101.11219996]
[1645017792295,3.23773754,102.0,101.94,134.89541471]
[1645017792498,0.4825031,102.0,101.94,134.89541471]
[1645017792895,0.4825031,102.0,101.95,112.7892]
[1645017793095,0.4825031,102.0,101.96,48.07677631]
[1645017793295,36.6733057,102.0,101.96,48.07677631]
[1645017793696,0.4825031,102.0,101.96,48.07677631]
[1645017794303,0.4825031,102.0,101.96,62.78477631]
[1645017794497,0.4825031,102.0,101.96,160.86477631]
[1645017800503,0.4825031,102.0,101.96,62.78477631]
[1645017804006,0.4825031,102.0,101.96,160.86477631]
[1645017804209,0.4825031,102.0,101.96,62.78477631]
[1645017810515,0.4825031,102.0,101.96,14.708]
[1645017811621,0.4825031,102.0,101.96,50.23178093]
[1645017812420,0.4825031,102.0,101.96,35.52378093]
[1645017812622,0.4825031,102.0,101.95,39.5159]
[1645017813622,55.77824752,102.0,101.95,59.51867461]
[1645017813822,55.77824752,102.0,101.94,14.7109]
[1645017814024,55.77824752,102.0,101.92,24.5522]
[1645017814825,78.35154752,102.0,101.92,24.5522]
[1645017815923,78.35154752,102.0,101.92,39.2658]
[1645017816924,78.35154752,102.0,101.93,47.14384154]
[1645017817125,78.35154752,102.0,101.93,61.85624154]
[1645017817726,78.35154752,102.0,101.93,182.97654154]
[1645017818144,63.64064752,102.0,101.93,182.97654154]
[1645017818343,63.64064752,102.0,101.93,84.89654154]
[1645017818943,63.64064752,102.0,101.93,70.18414154]
[1645017819144,78.35164752,102.0,101.93,70.18414154]
[1645017819944,78.35164752,102.0,101.93,84.89644154]
[1645017820745,55.77834752,102.0,101.94,98.08]
[1645017820945,41.06734752,102.0,101.95,14.7089]
[1645017821147,41.06734752,102.0,101.94,0.25]
[1645017821947,41.06734752,102.0,101.94,14.9602]
[1645017822150,0.25,101.99,101.94,14.9602]
[1645017823550,0.25,101.99,101.95,39.50115893]
[1645017825053,0.25,101.99,101.93,37.7522]
[1645017826052,0.25,101.99,101.94,46.28173657]
[1645017826952,14.9625,101.99,101.94,46.28173657]
[1645017827152,0.25,101.99,101.94,60.99263657]
[1645017827653,0.4825031,102.0,101.94,60.99263657]
[1645017828054,40.30593065,102.0,101.94,60.99263657]
[1645017829660,0.25,101.99,101.94,60.99263657]
[1645017830258,0.25,101.99,101.94,159.07263657]
[1645017831760,0.25,101.99,101.94,60.99263657]
[1645017831958,0.25,101.99,101.94,159.07263657]
[1645017834760,40.48774259,101.99,101.94,60.99263657]
[1645017834962,40.48774259,101.99,101.94,46.28173657]
[1645017835161,46.72774259,101.99,101.93,23.0403]
[1645017835362,51.62974259,101.99,101.93,23.0403]
[1645017835865,66.34174259,101.99,101.93,23.0403]
[1645017836064,66.34174259,101.99,101.94,47.5895573]
[1645017836261,61.43974259,101.99,101.94,47.5895573]
[1645017837865,21.202,101.99,101.94,47.5895573]
[1645017838063,0.25,101.99,101.94,47.5895573]
[1645017838965,43.66837439,101.99,101.94,47.5895573]
[1645017839365,58.38047439,101.99,101.94,47.5895573]
[1645017839564,43.41837439,101.99,101.94,47.5895573]
[1645017839978,0.4825031,102.0,101.94,47.5895573]
[1645017840966,0.7325031,102.0,101.94,47.5895573]
[1645017841367,0.7325031,102.0,101.95,98.08]
[1645017841568,0.7325031,102.0,101.95,22.977]
[1645017842367,0.7325031,102.0,101.96,44.86181668]
[1645017845369,0.7325031,102.0,101.96,157.64901668]
[1645017845568,0.7325031,102.0,101.96,59.56901668]
[1645017847374,0.7325031,102.0,101.96,44.86181668]
[1645017847775,40.25278694,101.99,101.95,22.977]
[1645017847974,40.25278694,101.99,101.92,29.4542]
[1645017848178,40.25278694,101.99,101.92,4.902]
[1645017848575,54.96488694,101.99,101.92,4.902]
[1645017848776,54.96488694,101.99,101.93,41.91053697]
[1645017850976,59.86688694,101.99,101.93,41.91053697]
[1645017852981,54.96488694,101.99,101.93,41.91053697]
[1645017858083,54.96488694,101.99,101.93,139.99053697]
[1645017858384,40.25278694,101.99,101.93,56.62163697]
[1645017859304,40.25278694,101.99,101.93,154.70163697]
[1645017859507,40.25278694,101.99,101.93,56.62163697]
[1645017860604,40.25278694,101.99,101.93,41.91053697]
[1645017860804,0.25,101.98,101.93,41.91053697]
[1645017861004,0.25,101.98,101.92,14.7122]
[1645017861206,0.25,101.98,101.9,23.4635]
[1645017861606,0.25,101.98,101.89,4.902]
[1645017862109,0.25,101.98,101.9,40.27908966]
[1645017862304,14.9634,101.98,101.9,40.27908966]
[1645017862505,36.19252183,101.97,101.9,40.27908966]
[1645017862710,43.62952183,101.97,101.9,40.27908966]
[1645017863305,14.7176,101.96,101.9,40.27908966]
[1645017863505,41.78226928,101.95,101.9,40.27908966]
[1645017864005,24.0478,101.96,101.9,40.27908966]
[1645017864809,62.92840011,101.96,101.9,40.27908966]
[1645017866211,77.64630011,101.96,101.9,40.27908966]
[1645017866410,77.64630011,101.96,101.88,23.4635]
[1645017866612,84.93030011,101.96,101.88,23.4635]
[1645017867617,4.905,101.95,101.88,23.4635]
[1645017867819,53.21210334,101.94,101.88,23.4635]
[1645017868220,53.21210334,101.94,101.89,48.69967735]
[1645017868419,38.49150334,101.94,101.89,48.69967735]
[1645017871521,14.719,101.95,101.89,48.69967735]
[1645017872722,50.98780444,101.95,101.89,48.69967735]
[1645017875727,55.89280444,101.95,101.89,48.69967735]
[1645017877131,50.98780444,101.95,101.89,48.69967735]
[1645017878733,50.98780444,101.95,101.87,24.3984]
[1645017878932,127.7757,101.94,101.86,28.2263]
[1645017879131,14.7248,101.92,101.86,4.906]
[1645017879534,14.7248,101.92,101.83,24.6164]
[1645017879738,72.30688328,101.91,101.84,42.16881384]
[1645017879937,24.2581,101.91,101.84,140.24881384]
[1645017880137,38.9828,101.91,101.84,140.24881384]
[1645017883133,24.2581,101.91,101.84,154.97191384]
[1645017883736,24.2581,101.91,101.84,159.87891384]
[1645017885565,76.23701298,101.93,101.84,159.87891384]
[1645017885763,76.23701298,101.93,101.86,43.69595614]
[1645017889165,81.14401298,101.93,101.86,43.69595614]
[1645017891169,81.14401298,101.93,101.86,141.77595614]
[1645017891768,81.14401298,101.93,101.86,43.69595614]
[1645017892370,0.25,101.92,101.86,43.69595614]
[1645017893771,0.25,101.92,101.86,141.77595614]
[1645017894275,0.25,101.92,101.86,43.69595614]
[1645017899378,14.9724,101.92,101.86,43.69595614]
[1645017899580,39.7706,101.92,101.86,43.69595614]
[1645017899777,35.21730233,101.91,101.86,43.69595614]
[1645017900880,49.94140233,101.91,101.86,43.69595614]
[1645017904314,49.94140233,101.91,101.85,22.8291]
[1645017904815,49.94140233,101.91,101.84,4.907]
[1645017906517,4.907,101.9,101.81,14.729]
[1645017906715,4.907,101.9,101.81,24.4216]
[1645017906716,22.9228,101.89,101.81,24.4216]
[1645017906915,14.7317,101.87,101.81,24.4216]
[1645017907117,39.4238,101.87,101.81,24.4216]
[1645017907516,45.33669636,101.86,101.81,24.4216]
[1645017908616,45.33669636,101.86,101.82,44.22513255]
[1645017908815,14.7328,101.85,101.82,44.22513255]